lending/lending_fUSD_20241214
["ID","MTS","AMOUNT","RATE_DAILY","PERIOD"]
[345298200,1734142258029,-500.0,0.00021199,3]
[345298201,1734142258038,-500.0,0.00021199,3]
[345298202,1734142258048,-500.0,0.00021199,3]
[345298203,1734142258058,-500.0,0.00021199,3]
[345298204,1734142258073,-500.0,0.00021199,3]
[345298205,1734142258084,-503.04344016,0.00021199,3]
[345298206,1734142258097,-500.0,0.00021199,3]
[345298207,1734142258107,-500.0,0.00021199,3]
[345298208,1734142258116,-506.8897139,0.00021199,3]
[345298209,1734142258127,-1337.79,0.00021199,3]
[345298210,1734142258136,-500.0,0.00021199,3]
[345298211,1734142258146,-499.3809216,0.00021199,3]
[345298212,1734142258155,-500.0,0.00021199,3]
[345298213,1734142258164,-786.49,0.00021199,3]
[345298214,1734142258176,-500.0,0.00021199,3]
[345298215,1734142258187,-500.0,0.00021199,3]
[345298216,1734142258197,-500.0,0.00021199,3]
[345298217,1734142258206,-500.0,0.00021199,3]
[345298218,1734142258217,-500.0,0.00021199,3]
[345298219,1734142258227,-194.98058884,0.00021199,3]
[345298220,1734142258236,-1248.5,0.00021199,3]
[345298221,1734142258246,-500.0,0.00021199,3]
[345298222,1734142258256,-500.0,0.00021199,3]
[345298223,1734142258266,-500.0,0.00021199,3]
[345298224,1734142258276,-500.0,0.00021199,3]
[345298225,1734142258285,-505.65651417,0.00021199,3]
[345298226,1734142258295,-500.0,0.00021199,3]
[345298227,1734142258304,-503.73296776,0.00021199,3]
[345298228,1734142258315,-502.31786619,0.00021199,3]
[345298229,1734142258325,-500.0,0.00021199,3]
[345298230,1734142258335,-504.69388205,0.00021199,3]
[345298231,1734142258344,-500.9906884,0.00021199,2]
[345298232,1734142258354,-500.0,0.00021199,3]
[345298233,1734142258364,-500.0,0.00021199,3]
[345298234,1734142258373,-500.0,0.00021199,3]
[345298235,1734142258383,-500.0,0.00021199,3]
[345298236,1734142258392,-500.0,0.00021199,3]
[345298237,1734142258402,-500.0,0.00021199,3]
[345298238,1734142258411,-500.0,0.00021199,3]
[345298239,1734142258420,-500.0,0.00021199,3]
[345298240,1734142258430,-500.0,0.00021199,3]
[345298241,1734142258439,-500.0,0.00021199,3]
[345298242,1734142258449,-500.0,0.00021199,3]
[345298243,1734142258459,-500.0,0.00021199,3]
[345298244,1734142258468,-500.0,0.00021199,3]
[345298245,1734142258477,-500.0,0.00021199,3]
[345298246,1734142258487,-500.0,0.00021199,3]
[345298247,1734142258496,-500.0,0.00021199,3]
[345298248,1734142258506,-887.88,0.00021199,3]
[345298249,1734142258516,-500.0,0.00021199,3]
[345298250,1734142258525,-500.0,0.00021199,3]
[345298251,1734142258535,-503.90176235,0.00021199,3]
[345298252,1734142258544,-500.0,0.00021199,3]
[345298253,1734142258553,-500.0,0.00021199,3]
[345298254,1734142258563,-500.0,0.00021199,3]
[345298255,1734142258573,-500.0,0.00021199,3]
[345298256,1734142258584,-500.0,0.00021199,3]
[345298257,1734142258594,-502.94531657,0.00021199,3]
[345298258,1734142258603,-500.0,0.00021199,3]
[345298259,1734142258612,-500.0,0.00021199,3]
[345298260,1734142258622,-503.06917634,0.00021199,3]
[345298261,1734142258631,-500.0,0.00021199,3]
[345298262,1734142258641,-500.0,0.00021199,3]
[345298263,1734142258651,-500.0,0.00021199,3]
[345298264,1734142258660,-500.0,0.00021199,3]
[345298265,1734142258669,-500.0,0.00021199,3]
[345298266,1734142258679,-500.0,0.00021199,3]
[345298267,1734142258688,-500.0,0.00021199,3]
[345298268,1734142258699,-868.72,0.00021199,3]
[345298269,1734142258708,-500.0,0.00021199,3]
[345298270,1734142258717,-500.0,0.00021199,3]
[345298271,1734142258727,-500.0,0.00021199,3]
[345298272,1734142258736,-500.0,0.00021199,3]
[345298273,1734142258746,-500.0,0.00021199,3]
[345298274,1734142258755,-500.0,0.00021199,3]
[345298275,1734142258765,-1229.72,0.00021199,3]
[345298276,1734142258774,-500.0,0.00021199,3]
[345298277,1734142258784,-500.0,0.00021199,3]
[345298278,1734142258793,-500.0,0.00021199,3]
[345298279,1734142258802,-500.0,0.00021199,3]
[345298280,1734142258812,-504.3382096,0.00021199,3]
[345298281,1734142258821,-500.0,0.00021199,3]
[345298282,1734142258831,-500.0,0.00021199,3]
[345298283,1734142258847,-500.0,0.00021199,3]
[345298284,1734142258857,-500.0,0.00021199,3]
[345298285,1734142258867,-500.0,0.00021199,3]
[345298286,1734142258877,-500.0,0.00021199,3]
[345298287,1734142258886,-605.06,0.00021199,3]
[345298288,1734142258896,-500.0,0.00021199,3]
[345298289,1734142258905,-500.0,0.00021199,3]
[345298290,1734142258914,-500.0,0.00021199,3]
[345298291,1734142258923,-500.0,0.00021199,3]
[345298292,1734142258932,-713.93,0.00021199,3]
[345298293,1734142258943,-500.0,0.00021199,3]
[345298294,1734142258952,-630.01,0.00021199,3]
[345298295,1734142258963,-500.0,0.00021199,3]
[345298296,1734142258973,-500.0,0.00021199,3]
[345298297,1734142258983,-500.0,0.00021199,3]
[345298298,1734142258992,-500.0,0.00021199,3]
[345298299,1734142259002,-504.17808238,0.00021199,3]
[345298300,1734142259011,-500.0,0.00021199,3]
[345298301,1734142259021,-500.0,0.00021199,3]
[345298302,1734142259030,-1071.59,0.00021199,3]
[345298303,1734142259040,-632.03,0.00021199,3]
[345298304,1734142259050,-890.39,0.00021199,3]
[345298305,1734142259059,-833.28,0.00021199,3]
[345298306,1734142259069,-500.0,0.00021199,3]
[345298307,1734142259078,-510.95481845,0.00021199,3]
[345298308,1734142259093,-500.0,0.00021199,3]
[345298309,1734142259102,-500.0,0.00021199,3]
[345298310,1734142259111,-814.52,0.00021199,3]
[345298311,1734142259121,-866.06,0.00021199,3]
[345298312,1734142259130,-1097.0,0.00021199,3]
[345298313,1734142259139,-653.27,0.00021199,3]
[345298314,1734142259149,-500.0,0.00021199,3]
[345298315,1734142259159,-1379.99,0.00021199,3]
[345298316,1734142259170,-500.0,0.00021199,3]
[345298317,1734142259180,-500.0,0.00021199,3]
[345298318,1734142259189,-547.33,0.00021199,3]
[345298319,1734142259199,-500.0,0.00021199,3]
[345298320,1734142259208,-590.54729195,0.00021199,3]
[345298321,1734142259217,-577.24,0.00021199,3]
[345298322,1734142259227,-513.10645153,0.00021199,3]
[345298323,1734142259235,-922.3,0.00021199,3]
[345298324,1734142259245,-500.0,0.00021199,3]
[345298325,1734142259255,-150.0,0.00021199,3]
[345298326,1734142259264,-500.0,0.00021199,3]
[345298327,1734142259273,-1104.72,0.00021199,3]
[345298328,1734142259282,-1008.26,0.00021199,3]
[345298329,1734142259292,-500.0,0.00021199,3]
[345298330,1734142259301,-500.0,0.00021199,3]
[345298331,1734142259311,-500.0,0.00021199,3]
[345298332,1734142259320,-500.0,0.00021199,3]
[345298333,1734142259329,-500.0,0.00021199,3]
[345298334,1734142259342,-500.0,0.00021199,3]
[345298335,1734142259351,-500.0,0.00021199,3]
[345298336,1734142259361,-1207.87,0.00021199,3]
[345298337,1734142259370,-500.0,0.00021199,3]
[345298338,1734142259379,-727.26,0.00021199,3]
[345298339,1734142259389,-587.45,0.00021199,3]
[345298340,1734142259398,-500.0,0.00021199,3]
[345298341,1734142259408,-771.44,0.00021199,3]
[345298342,1734142259417,-503.0872542,0.00021199,3]
[345298343,1734142259427,-500.0,0.00021199,3]
[345298344,1734142259436,-500.0,0.00021199,3]
[345298345,1734142259446,-500.0,0.00021199,3]
[345298346,1734142259455,-558.01364069,0.00021199,3]
[345298347,1734142259464,-617.98,0.00021199,3]
[345298348,1734142259474,-276.87875443,0.00021199,3]
[345298349,1734142259483,-500.0,0.00021199,3]
[345298350,1734142259493,-500.0,0.00021199,2]
[345298351,1734142259502,-500.0,0.00021199,3]
[345298352,1734142259511,-500.0,0.00021199,3]
[345298353,1734142259680,-647.79,0.00021199,3]
[345298354,1734142259690,-1270.72,0.00021199,3]
[345298355,1734142259700,-2389.65,0.00021199,3]
[345298356,1734142259709,-740.8,0.00021199,3]
[345298357,1734142259718,-500.0,0.00021199,3]
[345298358,1734142259727,-2333.44,0.00021199,3]
[345298359,1734142259736,-500.0,0.00021199,3]
[345298360,1734142259746,-606.93,0.00021199,3]
[345298361,1734142259755,-526.77,0.00021199,3]
[345298362,1734142259764,-500.0,0.00021199,3]
[345298363,1734142259773,-500.0,0.00021199,3]
[345298364,1734142259783,-588.13,0.00021199,3]
[345298365,1734142259792,-500.0,0.00021199,3]
[345298366,1734142259801,-500.0,0.00021199,3]
[345298367,1734142259810,-864.74,0.00021199,3]
[345298368,1734142259819,-150.0,0.000212,2]
[345298369,1734142259829,-5100.05181526,0.000212,2]
[345298370,1734142259841,-1000.0,0.000212,2]
[345298371,1734142259850,-616.0,0.000212,9]
[345298372,1734142259859,-673.0,0.000212,3]
[345298373,1734142259868,-7584.0,0.00021205,2]
[345298374,1734142259877,-500.0,0.00021243,3]
[345298375,1734142259887,-538.63,0.00021243,3]
[345298376,1734142259896,-968.77,0.00021244,3]
[345298377,1734142259905,-500.0,0.00021244,3]
[345298378,1734142259915,-500.0,0.00021244,3]
[345298379,1734142259926,-1145.93,0.00021244,3]
[345298380,1734142259936,-312.584842,0.00021244,3]
[345298381,1734142259945,-507.836941,0.00021244,3]
[345298382,1734142259955,-640.96,0.00021244,3]
[345298383,1734142259964,-968.65,0.00021244,3]
[345298384,1734142259974,-500.0,0.00021244,3]
[345298385,1734142259983,-1189.42,0.00021244,3]
[345298386,1734142259992,-1186.53,0.00021244,3]
[345298387,1734142260003,-1054.75,0.00021244,3]
[345298388,1734142260012,-7500.0,0.00021244,2]
[345298389,1734142260022,-500.0,0.00021244,3]
[345298390,1734142260032,-500.0,0.00021244,3]
[345298391,1734142260043,-2173.73,0.00021244,3]
[345298392,1734142260053,-489.98638786,0.00021244,3]
[345298393,1734142260063,-582.79,0.00021244,3]
[345298394,1734142260072,-500.0,0.00021244,3]
[345298395,1734142260084,-487.18658257,0.00021244,3]
[345298396,1734142260096,-659.37,0.00021244,3]
[345298397,1734142260106,-7493.13,0.00021244,3]
[345298398,1734142260115,-7493.13,0.00021244,3]
[345298399,1734142260124,-508.67,0.00021244,3]
[345298400,1734142260134,-753.41,0.00021244,3]
[345298401,1734142260144,-753.41,0.00021244,3]
[345298402,1734142260153,-500.0,0.00021244,3]
[345298403,1734142260163,-2646.5,0.00021244,3]
[345298404,1734142260173,-537.41,0.00021244,3]
[345298405,1734142260182,-537.41,0.00021244,3]
[345298406,1734142260191,-6492.25,0.00021244,3]
[345298407,1734142260201,-2321.8,0.00021244,3]
[345298408,1734142260210,-580.82,0.00021244,3]
[345298409,1734142260219,-580.82,0.00021244,3]
[345298410,1734142260229,-500.0,0.00021244,3]
[345298411,1734142260238,-228.30599146,0.00021244,3]
[345298412,1734142260248,-1177.42,0.00021244,3]
[345298413,1734142260258,-1177.42,0.00021244,3]
[345298414,1734142260267,-6563.29,0.00021244,3]
[345298415,1734142260276,-9793.85,0.00021244,3]
[345298416,1734142260285,-9793.85,0.00021244,3]
[345298417,1734142260294,-11856.72,0.00021244,3]
[345298418,1734142260304,-9719.18,0.00021244,3]
[345298419,1734142260313,-6057.5,0.00021244,3]
[345298420,1734142260321,-951.0,0.00021244,3]
[345298421,1734142260331,-951.0,0.00021244,3]
[345298422,1734142260342,-6057.5,0.00021244,3]
[345298423,1734142260352,-3631.26,0.00021244,3]
[345298424,1734142260362,-501.18,0.00021244,3]
[345298425,1734142260372,-501.18,0.00021244,3]
[345298426,1734142260381,-5674.52,0.00021244,3]
[345298427,1734142260391,-5674.52,0.00021244,3]
[345298428,1734142260400,-500.0,0.00021244,3]
[345298429,1734142260410,-1584.6,0.00021244,3]
[345298430,1734142260419,-1968.02,0.00021244,3]
[345298431,1734142260429,-1584.6,0.00021244,3]
[345298432,1734142260438,-1968.02,0.00021244,3]
[345298433,1734142260447,-500.0,0.00021244,3]
[345298434,1734142260457,-2133.89,0.00021244,3]
[345298435,1734142260466,-7507.1,0.00021244,3]
[345298436,1734142260475,-7507.1,0.00021244,3]
[345298437,1734142260484,-1196.6,0.00021244,3]
[345298438,1734142260493,-1276.93,0.00021244,3]
[345298439,1734142260502,-1276.93,0.00021244,3]
[345298440,1734142260511,-1139.31,0.00021244,3]
[345298441,1734142260520,-940.47,0.00021244,3]
[345298442,1734142260530,-940.47,0.00021244,3]
[345298443,1734142260540,-500.0,0.00021244,3]
[345298444,1734142260549,-500.0,0.00021244,3]
[345298445,1734142260558,-500.0,0.00021244,3]
[345298446,1734142260567,-500.0,0.00021244,3]
[345298447,1734142260578,-500.0,0.00021244,3]
[345298448,1734142260590,-500.0,0.00021244,3]
[345298449,1734142260599,-538.63,0.00021244,3]
[345298450,1734142260609,-538.63,0.00021244,3]
[345298451,1734142260622,-500.0,0.00021245,3]
[345298452,1734142260641,-500.0,0.00021245,3]
[345298453,1734142260660,-500.0,0.00021245,3]
[345298454,1734142260669,-874.03,0.00021245,3]
[345298455,1734142260679,-500.0,0.00021245,3]
[345298456,1734142260688,-500.0,0.00021245,3]
[345298457,1734142260698,-500.0,0.00021245,3]
[345298458,1734142260708,-500.0,0.00021245,3]
[345298459,1734142260718,-500.0,0.00021245,3]
[345298460,1734142260727,-526.56,0.00021245,3]
[345298461,1734142260737,-500.0,0.00021245,3]
[345298462,1734142260746,-627.49255267,0.00021245,3]
[345298463,1734142260755,-160.08355645,0.00021245,3]
[345298464,1734142260765,-344.44713074,0.00021245,3]
[345298465,1734142260774,-500.0,0.00021245,3]
[345298466,1734142260784,-813.11,0.00021245,3]
[345298467,1734142260793,-500.0,0.00021245,3]
[345298468,1734142260802,-500.0,0.00021245,3]
[345298469,1734142260811,-500.0,0.00021245,3]
[345298470,1734142260820,-498.90341197,0.00021245,3]
[345298471,1734142260829,-500.0,0.00021245,3]
[345298472,1734142260842,-498.90340882,0.00021245,3]
[345298473,1734142260851,-500.0,0.00021245,3]
[345298474,1734142260860,-500.0,0.00021245,3]
[345298475,1734142260869,-498.90339646,0.00021245,3]
[345298476,1734142260878,-1648.8,0.00021245,3]
[345298477,1734142260887,-711.29,0.00021245,3]
[345298478,1734142260896,-560.95,0.00021245,3]
[345298479,1734142260905,-490.45459,0.00021245,3]
[345298480,1734142260915,-616.06,0.00021245,3]
[345298481,1734142260924,-500.0,0.00021245,3]
[345298482,1734142260933,-500.0,0.00021245,3]
[345298483,1734142260942,-877.15,0.00021245,3]
[345298484,1734142260951,-500.0,0.00021245,3]
[345298485,1734142260960,-500.0,0.00021245,3]
[345298486,1734142260969,-631.83,0.00021245,3]
[345298487,1734142260979,-500.0,0.00021245,3]
[345298488,1734142260988,-500.0,0.00021245,3]
[345298489,1734142260997,-500.0,0.00021245,3]
[345298490,1734142261006,-500.0,0.00021245,3]
[345298491,1734142261015,-500.0,0.00021245,3]
[345298492,1734142261024,-500.0,0.00021245,3]
[345298493,1734142261033,-500.0,0.00021245,3]
[345298494,1734142261042,-500.0,0.00021245,3]
[345298495,1734142261051,-500.0,0.00021245,3]
[345298496,1734142261061,-500.0,0.00021245,3]
[345298497,1734142261070,-586.19,0.00021245,3]
[345298498,1734142261078,-500.0,0.00021245,3]
[345298499,1734142261092,-500.0,0.00021245,3]
[345298500,1734142261101,-500.0,0.00021245,3]
[345298501,1734142261111,-500.0,0.00021245,3]
[345298502,1734142261120,-500.0,0.00021245,3]
[345298503,1734142261130,-500.0,0.00021245,3]
[345298504,1734142261138,-500.0,0.00021245,3]
[345298505,1734142261147,-500.0,0.00021245,3]
[345298506,1734142261157,-500.0,0.00021245,3]
[345298507,1734142261169,-500.0,0.00021245,3]
[345298508,1734142261178,-500.0,0.00021245,3]
[345298509,1734142261187,-500.0,0.00021245,3]
[345298510,1734142261196,-676.61,0.00021245,3]
[345298511,1734142261205,-500.0,0.00021245,3]
[345298512,1734142261214,-847.86,0.00021245,3]
[345298513,1734142261223,-500.0,0.00021245,2]
[345298514,1734142261232,-500.0,0.00021245,3]
[345298515,1734142261242,-554.17,0.00021245,3]
[345298516,1734142261251,-500.0,0.00021245,3]
[345298517,1734142261260,-500.0,0.00021245,3]
[345298518,1734142261269,-500.0,0.00021245,3]
[345298519,1734142261279,-500.0,0.00021245,3]
[345298520,1734142261288,-500.0,0.00021245,3]
[345298521,1734142261298,-500.0,0.00021245,3]
[345298522,1734142261307,-500.0,0.00021245,3]
[345298523,1734142261317,-568.38,0.00021245,3]
[345298524,1734142261326,-1791.19,0.00021245,3]
[345298525,1734142261339,-500.0,0.00021245,3]
[345298526,1734142261348,-500.0,0.00021245,3]
[345298527,1734142261357,-500.0,0.00021245,3]
[345298528,1734142261366,-500.0,0.00021245,3]
[345298529,1734142261375,-500.0,0.00021245,3]
[345298530,1734142261384,-881.68,0.00021245,3]
[345298531,1734142261393,-500.0,0.00021245,3]
[345298532,1734142261402,-523.53179668,0.00021245,3]
[345298533,1734142261412,-2376.81,0.00021245,3]
[345298534,1734142261421,-500.0,0.00021245,3]
[345298535,1734142261430,-1173.72,0.00021245,3]
[345298536,1734142261439,-500.0,0.00021245,3]
[345298537,1734142261448,-500.0,0.00021245,3]
[345298538,1734142261458,-1471.6,0.00021245,3]
[345298539,1734142261468,-500.0,0.00021245,3]
[345298540,1734142261477,-546.76541177,0.00021245,3]
[345298541,1734142261487,-500.0,0.00021245,3]
[345298542,1734142261496,-500.0,0.00021245,3]
[345298543,1734142261504,-500.0,0.00021245,3]
[345298544,1734142261513,-500.0,0.00021245,3]
[345298545,1734142261522,-938.33,0.00021245,3]
[345298546,1734142261531,-500.0,0.00021245,3]
[345298547,1734142261540,-500.0,0.00021245,3]
[345298548,1734142261550,-609.9,0.00021245,3]
[345298549,1734142261559,-552.93,0.00021245,3]
[345298550,1734142261568,-332.35383974,0.00021245,3]
[345298551,1734142261577,-500.0,0.00021245,3]
[345298552,1734142261591,-500.0,0.00021245,3]
[345298553,1734142261600,-2045.96,0.00021245,3]
[345298554,1734142261610,-500.0,0.00021245,3]
[345298555,1734142261619,-530.68,0.00021245,3]
[345298556,1734142261628,-500.0,0.00021245,3]
[345298557,1734142261638,-500.0,0.00021245,3]
[345298558,1734142261647,-500.0,0.00021245,3]
[345298559,1734142261657,-649.78,0.00021245,3]
[345298560,1734142261666,-500.0,0.00021245,3]
[345298561,1734142261675,-500.0,0.00021245,3]
[345298562,1734142261684,-500.0,0.00021245,3]
[345298563,1734142261693,-500.0,0.00021245,3]
[345298564,1734142261702,-500.0,0.00021245,3]
[345298565,1734142261711,-512.91,0.00021245,3]
[345298566,1734142261720,-500.0,0.00021245,3]
[345298567,1734142261729,-500.0,0.00021245,3]
[345298568,1734142261738,-500.0,0.00021245,3]
[345298569,1734142261748,-500.0,0.00021245,3]
[345298570,1734142261757,-500.97,0.00021245,3]
[345298571,1734142261767,-500.0,0.00021245,3]
[345298572,1734142261776,-500.0,0.00021245,3]
[345298573,1734142261785,-500.0,0.00021245,3]
[345298574,1734142261794,-500.0,0.00021245,3]
[345298575,1734142261805,-500.0,0.00021245,3]
[345298576,1734142261814,-501.89922042,0.00021245,3]
[345298577,1734142261823,-635.10749828,0.00021245,3]
[345298578,1734142261833,-500.87140613,0.00021245,3]
[345298579,1734142261843,-500.0,0.00021245,3]
[345298580,1734142261852,-500.0,0.00021245,3]
[345298581,1734142261861,-500.0,0.00021245,3]
[345298582,1734142261871,-500.0,0.00021245,3]
[345298583,1734142261880,-500.0,0.00021245,3]
[345298584,1734142261890,-543.22,0.00021245,3]
[345298585,1734142261899,-507.63893911,0.00021245,3]
[345298586,1734142261908,-500.0,0.00021245,3]
[345298587,1734142261917,-496.50021677,0.00021245,3]
[345298588,1734142261927,-500.0,0.00021245,3]
[345298589,1734142261936,-500.0,0.00021245,3]
[345298590,1734142261946,-500.0,0.00021245,3]
[345298591,1734142261955,-778.38,0.00021245,3]
[345298592,1734142261964,-500.0,0.00021245,3]
[345298593,1734142261973,-504.82272803,0.00021245,3]
[345298594,1734142261982,-556.67,0.00021245,3]
[345298595,1734142261991,-500.0,0.00021245,3]
[345298596,1734142262000,-500.0,0.00021245,3]
[345298597,1734142262010,-503.49669293,0.00021245,3]
[345298598,1734142262019,-500.0,0.00021245,3]
[345298599,1734142262027,-699.96,0.00021245,3]
[345298600,1734142262037,-1165.88,0.00021245,3]
[345298601,1734142262046,-500.0,0.00021245,3]
[345298602,1734142262055,-500.0,0.00021245,3]
[345298603,1734142262065,-500.0,0.00021245,3]
[345298604,1734142262076,-2853.8876971,0.00021245,2]
[345298605,1734142262094,-3411.0752951,0.00021245,2]
[345298606,1734142262103,-3968.2628931,0.00021245,2]
[345298607,1734142262113,-4525.4504911,0.00021245,2]
[345298608,1734142262122,-5082.6380892,0.00021245,2]
[345298609,1734142262131,-5639.8256872,0.00021245,2]
[345298610,1734142262140,-486.88012461,0.00021245,3]
[345298611,1734142262149,-500.0,0.00021245,3]
[345298612,1734142262158,-698.59,0.00021245,3]
[345298613,1734142262169,-500.0,0.00021245,3]
[345298614,1734142262179,-504.64777464,0.00021245,3]
[345298615,1734142262188,-838.3,0.00021245,3]
[345298616,1734142262197,-500.0,0.00021245,3]
[345298617,1734142262207,-500.0,0.00021245,3]
[345298618,1734142262216,-500.0,0.00021245,3]
[345298619,1734142262226,-2668.91,0.00021245,3]
[345298620,1734142262235,-4036.09,0.00021245,3]
[345298621,1734142262244,-1184.91,0.00021245,3]
[345298622,1734142262253,-506.48830913,0.00021245,3]
[345298623,1734142262263,-500.0,0.00021245,3]
[345298624,1734142262273,-650.15,0.00021245,3]
[345298625,1734142262283,-507.19173958,0.00021245,3]
[345298626,1734142262292,-629.3585137,0.00021245,2]
[345298627,1734142262302,-505.07537749,0.00021245,3]
[345298628,1734142262311,-752.2332711,0.00021245,2]
[345298629,1734142262321,-875.1080286,0.00021245,2]
[345298630,1734142262482,-997.982786,0.00021245,2]
[345298631,1734142262491,-500.0,0.00021245,3]
[345298632,1734142262501,-1120.8575434,0.00021245,2]
[345298633,1734142262510,-1243.7323009,0.00021245,2]
[345298634,1734142262520,-500.0,0.00021245,3]
[345298635,1734142262530,-645.47,0.00021245,3]
[345298636,1734142262540,-500.0,0.00021245,3]
[345298637,1734142262549,-931.75,0.00021245,3]
[345298638,1734142262559,-500.0,0.00021245,3]
[345298639,1734142262568,-500.0,0.00021245,3]
[345298640,1734142262578,-506.87219616,0.00021245,3]
[345298641,1734142262589,-506.38376773,0.00021245,3]
[345298642,1734142262598,-968.77,0.00021245,3]
[345298643,1734142262608,-968.77,0.00021245,3]
[345298644,1734142262618,-968.77,0.00021245,3]
[345298645,1734142262628,-501.73652097,0.00021245,3]
[345298646,1734142262637,-500.0,0.00021245,3]
[345298647,1734142262646,-500.0,0.00021245,3]
[345298648,1734142262655,-500.0,0.00021245,3]
[345298649,1734142262665,-504.87949838,0.00021245,3]
[345298650,1734142262675,-667.69,0.00021245,3]
[345298651,1734142262686,-500.0,0.00021245,3]
[345298652,1734142262696,-500.0,0.00021245,3]
[345298653,1734142262706,-500.0,0.00021245,3]
[345298654,1734142262717,-500.0,0.00021245,3]
[345298655,1734142262728,-500.0,0.00021245,3]
[345298656,1734142262738,-500.0,0.00021245,3]
[345298657,1734142262748,-217.7226527,0.00021245,2]
[345298658,1734142262759,-217.7226527,0.00021245,2]
[345298659,1734142262769,-217.7226527,0.00021245,2]
[345298660,1734142262779,-217.7226527,0.00021245,2]
[345298661,1734142262788,-217.7226527,0.00021245,2]
[345298662,1734142262798,-217.7226527,0.00021245,2]
[345298663,1734142262808,-516.43247561,0.00021245,3]
[345298664,1734142262818,-500.0,0.00021245,3]
[345298665,1734142262828,-500.0,0.00021245,3]
[345298666,1734142262840,-500.0,0.00021245,3]
[345298667,1734142262851,-500.0,0.00021245,3]
[345298668,1734142262861,-443.64,0.00021245,3]
[345298669,1734142262871,-500.0,0.00021245,3]
[345298670,1734142262880,-500.0,0.00021245,3]
[345298671,1734142262890,-152.237563,0.00021245,3]
[345298672,1734142262899,-527.48,0.00021245,3]
[345298673,1734142262909,-1145.93,0.00021245,3]
[345298674,1734142262918,-1145.93,0.00021245,3]
[345298675,1734142262927,-1145.93,0.00021245,3]
[345298676,1734142262936,-500.0,0.00021245,3]
[345298677,1734142262946,-1176.04,0.00021245,3]
[345298678,1734142262955,-500.0,0.00021245,3]
[345298679,1734142262964,-500.0,0.00021245,3]
[345298680,1734142262974,-312.584842,0.00021245,3]
[345298681,1734142262984,-507.836941,0.00021245,3]
[345298682,1734142262993,-312.584842,0.00021245,3]
[345298683,1734142263003,-507.836941,0.00021245,3]
[345298684,1734142263014,-312.584842,0.00021245,3]
[345298685,1734142263034,-507.836941,0.00021245,3]
[345298686,1734142263052,-500.0,0.00021245,3]
[345298687,1734142263063,-500.0,0.00021245,3]
[345298688,1734142263074,-500.0,0.00021245,3]
[345298689,1734142263089,-640.96,0.00021245,3]
[345298690,1734142263104,-640.96,0.00021245,3]
[345298691,1734142263115,-640.96,0.00021245,3]
[345298692,1734142263125,-500.0,0.00021245,3]
[345298693,1734142263137,-500.0,0.00021245,3]
[345298694,1734142263147,-1213.8,0.00021245,3]
[345298695,1734142263157,-889.25,0.00021245,3]
[345298696,1734142263168,-504.44477526,0.00021245,2]
[345298697,1734142263178,-609.72,0.00021245,3]
[345298698,1734142263188,-500.0,0.00021245,3]
[345298699,1734142263198,-968.65,0.00021245,3]